Cogmind - Beta 14 @@@ ROGUE MODE // 2024.10.13 @ 11:10:42 Player: Glitch Artist Result: Self-destructed Performance ------------- Evolutions (2) 1000 Regions Visited (4) 800 Robots Destroyed (18) 90 Value Destroyed (366) 366 Prototype IDs (0) 0 Alien Tech Used (0) 0 Bonus (0) 0 TOTAL SCORE: 2256 Bonus ------- None Cogmind --------- Core Integrity 254/550 Matter 293/300 Energy 100/100 System Corruption 1% Temperature Cool (0) Movement Rolling (140) Ox4 Location -8/Materials Parts ------- > --- POWER (2) -------- (None) > --- PROPULSION (3) --- Wheel Airjet > --- UTILITY (3) ------ Improved Heat Sink High-capacity Storage Unit Visual Processing Unit > --- WEAPON (3) ------- Particle Gun > --- INVENTORY (20) --- Flight Unit Peak State ------------ > --- POWER ------------ Light Ion Engine Light Nuclear Core > --- PROPULSION ------- Wheel Airjet > --- UTILITY ---------- Improved Heat Sink High-capacity Storage Unit Visual Processing Unit > --- WEAPON ----------- Particle Gun Particle Gun Flail > --- INVENTORY -------- Flight Unit [Rating: 20] Favorites ----------- Power Ion Engine Engine Ion Engine Power Core Light Nuclear Core Propulsion Flight Unit Wheel Wheel Hover Unit Airjet Flight Unit Flight Unit Utility Small Storage Unit Device Improved Heat Sink Storage Small Storage Unit Processor Visual Processing Unit Weapon Flail Energy Gun Beamcaster Energy Cannon Beam Cannon Ballistic Gun Assault Rifle Impact Weapon Flail Slashing Weapon Mining Claw Build | -11 -10 -9 -9 -8 ------- Run | Yrd Mat Mat Min Mat Slots Evolved 4 | . . 2 . 2 Power 1 | . . . . 1 Propulsion 1 | . . 1 . . Utility 1 | . . 1 . . Weapon 1 | . . . . 1 Parts Attached 39 | 6 5 7 6 15 Power 8 | 1 . 3 1 3 Engine 7 | 1 . 3 1 2 Core 1 | . . . . 1 Reactor . | . . . . . Propulsion 14 | 2 2 1 3 6 Treads . | . . . . . Leg . | . . . . . Wheel 3 | 2 . . . 1 Hover 1 | . . . . 1 Flight 10 | . 2 1 3 4 Utility 5 | 1 1 1 . 2 Device 1 | . . . . 1 Storage 3 | 1 . 1 . 1 Processor 1 | . 1 . . . Hackware . | . . . . . Protection . | . . . . . Artifact . | . . . . . Weapon 12 | 2 2 2 2 4 Energy Gun 5 | 1 . . 1 3 Energy Cannon 2 | . 1 . . 1 Ballistic Gun 3 | 1 . 1 1 . Ballistic Cannon . | . . . . . Launcher . | . . . . . Special Weapon . | . . . . . Impact Weapon 1 | . . 1 . . Slashing Weapon 1 | . 1 . . . Piercing Weapon . | . . . . . Special Melee Weapon . | . . . . . Unidentified Prototypes . | . . . . . Parts Lost 18 | . 1 1 4 12 Power 5 | . . . 1 4 Propulsion 7 | . 1 1 2 3 Utility . | . . . . . Weapon 6 | . . . 1 5 Highest Loss Streak 8 | . 1 1 2 8 To Critical Strikes . | . . . . . Average Slot Usage (%) 82 | . 86 80 84 79 Engine 10 | . 14 11 11 9 Core 1 | . . . . 3 Wheel 3 | . 17 . . 2 Hover 1 | . . . . 3 Flight 19 | . 6 25 29 13 Device 1 | . . . . 3 Storage 10 | . 14 11 11 9 Processor 9 | . 5 11 11 9 Energy Gun 5 | . . . 4 12 Energy Cannon 3 | . 13 . . 4 Ballistic Gun 4 | . 3 11 6 . Impact Weapon 6 | . . . 11 9 Slashing Weapon 3 | . 11 10 . . Peak Build Rating 20 | 6 8 10 14 20 Average Rating 11 | 4 6 9 12 16 On Entrance 7 | . 6 8 10 14 Naked Turns . | . . . . . Heaviest Build 57 | 14 15 16 17 57 Greatest Support 20 | 20 20 12 12 13 Greatest Overweight (x) 5 | . 1 1 4 5 Average Overweight (x) 1 | . . 1 1 2 Largest Inventory Capacity 20 | 8 8 20 8 20 Average Capacity 8 | 6 8 8 8 11 Most Carried 6 | 2 6 5 6 4 Average Carried 3 | . 3 4 3 1 Final Capacity 20 | 8 8 8 8 20 Final Carried 5 | 1 5 4 3 1 Class Distribution -------------------- 71% | Scavenger-Mutant 25% | Mutant Dominant Class ---------------- Mutant | -10/Materials Scavenger-Mutant | -9/Materials Scavenger-Mutant | -9/Mines Scavenger-Mutant | -8/Materials Resources | -11 -10 -9 -9 -8 ----------- Run | Yrd Mat Mat Min Mat Matter Collected 579 | 210 95 57 119 98 Remotely . | . . . . . Salvage Created 482 | . 164 87 55 176 Parts 35 | . 17 7 6 5 Haulers Intercepted . | . . . . . Recyclers Shooed 1 | . . 1 . . Parts Field Recycled . | . . . . . Retrieved Matter . | . . . . . Parts Self-Destructed . | . . . . . Prevented . | . . . . . Kills | -11 -10 -9 -9 -8 ------- Run | Yrd Mat Mat Min Mat Combat Hostiles Destroyed 16 | . 7 2 4 3 Melee 1 | . . . . 1 Guns 7 | . . 2 4 1 Cannons 8 | . 7 . . 1 Classes Destroyed 7 | . 3 1 1 2 Worker 1 | . . . . 1 Builder 1 | . . . . 1 Watcher 1 | . 1 . . . Swarmer 9 | . 6 . 3 . Grunt 5 | . 1 1 . 3 Sentry 1 | . . 1 . . Assembled 1 | . . . 1 . Best Kill Streak 3 | . 2 1 3 2 Combat Bots Only 3 | . 2 1 3 2 Max Kills in Single Turn 2 | . 1 1 1 2 Gunslinging . | . . . . . Exploded . | . . . . . Melee 1 | . . . . 1 Uniques/NPCs Destroyed . | . . . . . Combat | -11 -10 -9 -9 -8 -------- Run | Yrd Mat Mat Min Mat Hostile Shots Fired 222 | . 56 17 64 85 Missed 66 | . 20 4 19 23 Damage Taken 1993 | . 322 163 547 961 Core 591 | . 84 27 184 296 Absorbed by Shields . | . . . . . Core Remaining (%) 71 | 100 66 . 47 . Volleys Fired 67 | . 33 10 10 14 Largest 2 | . 1 1 1 2 Hottest 135 | . 60 20 75 135 Shots Fired 80 | . 33 10 10 27 Gun 36 | . . 10 10 16 Cannon 44 | . 33 . . 11 Launcher . | . . . . . Special . | . . . . . Kinetic 18 | . . 10 8 . Thermal 62 | . 33 . 2 27 Explosive . | . . . . . Electromagnetic . | . . . . . Robot Hit Streak 11 | . 3 3 5 11 Robot Miss Streak 4 | . 4 2 3 4 Penetration Max . | . . . . . Secondary Targets . | . . . . . Shots Hit Robots 56 | . 18 5 8 25 Core Hits 26 | . 8 4 4 10 Critical Kills . | . . . . . Critical Parts Destroyed . | . . . . . Critical Strikes 1 | . . . . 1 Burn 1 | . . . . 1 Melee Attacks 9 | . . . 3 6 Impact 9 | . . . 3 6 Slashing . | . . . . . Piercing . | . . . . . Sneak Attacks 2 | . . . 1 1 Combat Hostiles . | . . . . . Follow-up Attacks . | . . . . . Damage Inflicted 1073 | . 334 61 155 523 Guns 355 | . . 61 116 178 Cannons 472 | . 334 . . 138 Explosions . | . . . . . Melee 246 | . . . 39 207 Ramming . | . . . . . Kinetic 135 | . . 61 74 . Thermal 692 | . 334 . 42 316 Explosive . | . . . . . Electromagnetic . | . . . . . Impact 246 | . . . 39 207 Slashing . | . . . . . Piercing . | . . . . . Highest Corruption 1 | . . . . 1 Average Corruption 1 | . . . . 1 Corruption Purged . | . . . . . Corruption Blocked . | . . . . . Effects 2 | . . . . 2 Matter Fused 1 | . . . . 1 Data Loss (major) 1 | . . . . 1 Overload Shots . | . . . . . Overflow Damage 54 | . . . 9 45 Projectiles 7 | . . . . 7 Explosions . | . . . . . Melee 47 | . . . 9 38 Knockbacks 2 | . . . 1 1 Impact 2 | . . . 1 1 Kinetic . | . . . . . Secondary . | . . . . . Self-Inflicted Damage . | . . . . . Shots . | . . . . . Rammed . | . . . . . Targets Rammed . | . . . . . Kicked . | . . . . . Crushed . | . . . . . Highest Temperature 395 | . 206 . 64 395 Average Temperature 108 | . 72 . 33 172 Received Heat Transfer 681 | . 102 72 . 507 Effects 1 | . . . . 1 Interference 1 | . . . . 1 Siege Activations . | . . . . . Robots Corrupted 1 | . . . . 1 Combat Hostiles . | . . . . . Parts Fried 2 | . . . . 2 Impact Corruptions 4 | . . . 1 3 Robots Melted . | . . . . . Combat Hostiles . | . . . . . Parts Melted 3 | . 1 . . 2 Heat Transferred 1628 | . 703 . 74 851 Parts Sabotaged . | . . . . . Parts Stolen . | . . . . . Parts Stripped . | . . . . . Power Chain Reactions . | . . . . . Alert | -11 -10 -9 -9 -8 ------- Run | Yrd Mat Mat Min Mat Peak Influence 231 | . 231 208 141 40 Initial 97 | . . 97 81 . Average 76 | . 93 155 86 14 Maximum Alert Level 1 | . 1 1 . . Low Security (%) 92 | 100 93 65 100 100 Level 1 7 | . 6 34 . . Level 2 . | . . . . . Level 3 . | . . . . . Level 4 . | . . . . . Level 5 . | . . . . . High Security . | . . . . . Max Security . | . . . . . Squads Dispatched 6 | . 2 2 . 2 Investigation 4 | . 1 2 . 1 Extermination . | . . . . . Reinforcement 2 | . 1 . . 1 Assault . | . . . . . Garrison . | . . . . . Intercept . | . . . . . Searches Triggered . | . . . . . Construction Impeded . | . . . . . Haulers Reinforced . | . . . . . Active Scanning Responses . | . . . . . Cargo Convoy Interrupts . | . . . . . Stealth | -11 -10 -9 -9 -8 --------- Run | Yrd Mat Mat Min Mat Distress Signals . | . . . . . Communications Jammed . | . . . . . Distress Signals . | . . . . . Times Spotted 36 | . 13 5 10 8 Peak Tracking Total 4 | . 4 3 3 4 Tactical Retreats 2 | . 1 . 1 . Traps | -11 -10 -9 -9 -8 ------- Run | Yrd Mat Mat Min Mat Traps Triggered 1 | . 1 . . . Indirectly . | . . . . . Trap Hack Attempts . | . . . . . Triggered . | . . . . . Disarmed . | . . . . . Reprogrammed . | . . . . . Reused . | . . . . . Traps Extracted . | . . . . . Installed . | . . . . . Triggered . | . . . . . Machines | -11 -10 -9 -9 -8 ---------- Run | Yrd Mat Mat Min Mat Machines Disabled . | . . . . . Max in Single Turn . | . . . . . Machines Repaired . | . . . . . Machines Dismantled . | . . . . . Machines Sabotaged . | . . . . . Overloaded Fab Kills . | . . . . . Hacking | -11 -10 -9 -9 -8 --------- Run | Yrd Mat Mat Min Mat Machines Accessed 6 | . 1 4 . 1 Terminals 4 | . 1 3 . . Fabricators . | . . . . . Repair Stations . | . . . . . Recycling Units 1 | . . 1 . . Scanalyzers 1 | . . . . 1 Garrison Access . | . . . . . Total Hacks 15 | . 2 10 . 3 Successful 11 | . 2 6 . 3 Failed 4 | . . 4 . . Catastrophic 1 | . . 1 . . Database Lockouts . | . . . . . Manual . | . . . . . Terminals 11 | . 2 9 . . Fabricators . | . . . . . Repair Stations . | . . . . . Recycling Units 1 | . . 1 . . Scanalyzers 3 | . . . . 3 Garrison Access . | . . . . . Terminal Hacks 7 | . 2 5 . . Alert Level 1 | . 1 . . . Locate Traps 1 | . . 1 . . Dispatch Records 2 | . 1 1 . . Registered Components 1 | . . 1 . . Zone Layout 2 | . . 2 . . Fabricator Hacks . | . . . . . Repair Station Hacks . | . . . . . Recycling Unit Hacks 1 | . . 1 . . Report Inventory 1 | . . 1 . . Scanalyzer 3 | . . . . 3 Insert Component 2 | . . . . 2 Analyze 1 | . . . . 1 Garrison Access Hacks . | . . . . . Unauthorized Hacks . | . . . . . Terminals . | . . . . . Fabricators . | . . . . . Repair Stations . | . . . . . Recycling Units . | . . . . . Scanalyzers . | . . . . . Garrison Access . | . . . . . Data Cores Recovered . | . . . . . Used . | . . . . . Hacking Detections 4 | . . 3 . 1 Full Trace Events 3 | . . 2 . 1 Feedback Events 1 | . . . . 1 Corruption 1 | . . . . 1 Feedback Blocked . | . . . . . Robot Schematics Acquired . | . . . . . Robots Built . | . . . . . Authchips . | . . . . . Time . | . . . . . Total Robot Build Rating . | . . . . . Part Schematics Acquired 1 | . . . . 1 Parts Built . | . . . . . Authchips . | . . . . . Time . | . . . . . Total Part Build Rating . | . . . . . Parts Repaired . | . . . . . Time . | . . . . . Parts Recycled . | . . . . . Recycled Matter . | . . . . . Retrieved Matter . | . . . . . Retrieved Components . | . . . . . Parts Scanalyzed 1 | . . . . 1 Part Schematics Acquired 1 | . . . . 1 Parts Damaged . | . . . . . Bothacking | -11 -10 -9 -9 -8 ------------ Run | Yrd Mat Mat Min Mat Used RIF Installer . | . . . . . Robots Hacked . | . . . . . Non-combat . | . . . . . Combat . | . . . . . Robot Hacks Applied . | . . . . . Relay Couplers Released . | . . . . . Fabnet Peak Effective % . | . . . . . Robots Rewired . | . . . . . Allies Hacked . | . . . . . Hacks Repelled . | . . . . . Allies | -11 -10 -9 -9 -8 -------- Run | Yrd Mat Mat Min Mat Total Allies 2 | . . . 2 . Largest Group 2 | . . . 2 . Highest-Rated Group 39 | . . . 39 . Highest-Rated Ally 31 | . . . 31 . Total Orders . | . . . . . Ally Attacks 6 | . . . 6 . Total Damage 82 | . . . 82 . Kills 2 | . . . 2 . Allies Corrupted . | . . . . . Allies Melted . | . . . . . Intel | -11 -10 -9 -9 -8 ------- Run | Yrd Mat Mat Min Mat Robot Analysis Total . | . . . . . Derelict Logs Recovered . | . . . . . Drone Launches . | . . . . . Drone Recoveries . | . . . . . Exploration | -11 -10 -9 -9 -8 ------------- Run | Yrd Mat Mat Min Mat Turns Passed 1582 | 55 277 270 546 434 Spaces Moved 1150 | 56 210 205 403 276 Core 12 | 7 . . . 5 Treads . | . . . . . Legs . | . . . . . Wheels 299 | 49 164 . . 86 Hover 18 | . . . . 18 Flight 821 | . 46 205 403 167 Fastest Speed 32 | 50 80 114 34 32 Average Speed 112 | 76 91 116 120 123 Slowest Speed 360 | 80 117 117 360 360 Overloaded Moves . | . . . . . Propulsion Burnouts . | . . . . . Robots Hopped . | . . . . . Cave-ins Triggered . | . . . . . Exploration Rate (%) 28 | 3 35 19 71 12 Regions Visited 4 Branch Regions 1 Pre-discovered Areas . | . . . . . Known Exits Taken . | . . . . . Unknown Exits Taken 4 | 1 1 1 1 . Scrap Searched 1 | . . . 1 . Spaces Dug . | . . . . . Terrain Destroyed . | . . . . . Melee . | . . . . . Projectile . | . . . . . AOE . | . . . . . Terrain Rammed . | . . . . . Walls Destroyed . | . . . . . Machines Disabled . | . . . . . Actions | -11 -10 -9 -9 -8 --------- Run | Yrd Mat Mat Min Mat Total 1340 | 68 261 226 450 335 Wait 34 | . 4 . 21 9 Move 1146 | 55 209 204 402 276 Hop . | . . . . . Pick Up 33 | 7 8 2 6 10 Fast Attach . | . . . . . Attach 28 | 6 2 2 5 13 Detach 4 | . . 1 . 3 Swap 11 | . 3 5 1 2 Drop 8 | . 2 2 2 2 Fire 67 | . 33 10 10 14 Melee 9 | . . . 3 6 Ram . | . . . . . Kick . | . . . . . Crush . | . . . . . Escape Stasis . | . . . . . Rewire . | . . . . . Trap . | . . . . . Miscellaneous . | . . . . . Route ------- -11/Scrapyard -10/Materials -9/Materials -9/Mines -8/Materials History --------- Turn | Location | Event 2 | -11/Scrapyard | Discovered new exit (range 16) 56 | -11/Scrapyard | Entered Materials 239 | -10/Materials | Discovered new exit (range 17) 313 | -10/Materials | Build established: Mutant 333 | -10/Materials | Entered another Materials area 333 | -9/Materials | Evolved 2 slots: Propulsion x1, Utility x1 539 | -9/Materials | Discovered new exit (range 13) 603 | -9/Materials | Entered Mines 860 | -9/Mines | Assembled infested the area 865 | -9/Mines | Assisted by a Guerilla fighting off Assembled 992 | -9/Mines | Build established: Scavenger-Mutant 1115 | -9/Mines | Core integrity fell below 50% 1131 | -9/Mines | Discovered new exit (range 10) 1149 | -9/Mines | Entered Materials 1149 | -8/Materials | Evolved 2 slots: Power x1, Weapon x1 1407 | -8/Materials | Lost 8 parts (2p3n3w) 1577 | -8/Materials | Core integrity fell below 50% 1583 | -8/Materials | Self-destructed Last Messages --------------- 01443_ K-01 Serf destroyed. 01450_ Acquired Wheel. 01454_ Acquired 8 matter. 01455_ Acquired Lgt. Ion Engine. 01473_ Dropped Sml. Storage Unit. 01529_ System corrupted: Matter fused (-5). 01545_ Integration Channel disabled. 01546_ Penetrated by Slug. 01564_ Slug penetrates Wall. 01572_ Lgt. Ion Engine destroyed. 01576_ U-05 Engineer builds a Wall. 01576_ Penetrated by Slug. 01576_ Critical hit (Burn: +37). 01579_ Lgt. Nuclear Core destroyed. 01580_ U-05 Engineer lays Concrete. 01581_ U-05 Engineer builds a Wall. 01582_ Penetrated by Slug. 01582_ Flail destroyed. 01582_ Particle Gun destroyed. 01582_ Critical hit (Burn: +37). Map ----- +----------------------------------------------------+ | ?????????????????????????????????????? | | ?????????????????????????????????????? | | ?????????????????????????????????????? | | ?????????????????????????????????????? | | ???????? ????????????????????????????? | | ???????? ????????????????????????????? | | ???????? ????????????????????????????? | | ???????? ????????????????????????????? | | ???????? ????????????????????????????? | | ???????? ?????????????????#####??????? | | ???????? ?????????????????# #??????? | | ?####### ?????????????????# #??????? | | ?+ #????????????????# #??????? | | # ^ ! #????????????????# #??????? | | # T??????????##?#### #??????? | | + #????????### ## # #??????? | | ?# T????????#;;;;;;;; ######## | | ?# "" #??????###;! ; # # | | ?# T" #??????#" ; # % # | | ?# ! "" #??????#" ; # % # | | ## #??????# + """% # | | #??????##;; Y ; # """ # | | ## #####+#########;;!h ] ; # """ # | | ??????# ! [##;;;;;;; ######## | | ??????# ##u;;;;; #?????? | | ??????# """ " # @ #?????? | | ??????# """""""" + #?????? | | ??????# """ """ # #?????? | | ??????# !# #### #?????? | | ??????#= # g #??#######?????? | | ??????#######+##### #??????????????? | | ????????##### ##### #??????????????? | | ???????##! #??????????????? | | ???????#! #??????????????? | | ???????#! #??????????????? | | ???????#! ########??????????????? | | ???????#! #?????????????????????? | | ???????##! #?????????????????????? | | ????????#### #?????????????????????? | | ???????????# #?????????????????????? | | ???????????# #?????????????????????? | | ???????????# #?????????????????????? | | ???????????# #?????????????????????? | | ???????????# #?????????????????????? | | ???????????# #?????????????????????? | | ???????????# +?????????????????????? | | ???????????# #?????????????????????? | | ???????????# ??????????????????????? | | ??????????? ??????????????????????? | | ???????????? ??????????????????????? | +----------------------------------------------------+ Best States ------------- Heat Dissipation 45 Energy Generation 19 Energy Capacity 275 Matter Stores 300 Matter Capacity 300 Sight Range 18 Terrain Scan Density 10 Evasion (%) 63 Item Schematics ----------------- Flight Unit | -8/Materials | Scanalyzed Robot Schematics ------------------ None Fabricated ------------ Nothing Alien Tech Used ----------------- None Achievements -------------- I Survived The Infestation Challenges ------------ None Game ------ Seed OpticalHelicalShovel Manual? 0 Play Time 00:16:04 Cumulative 5.4 hours Start 2024.10.12 @ 14:13:22 End 2024.10.13 @ 11:10:42 Sessions 3 Manual Loads 0 Difficulty Rogue Special Mode None Game No. 10 Rogue 8 Adventurer 0 Explorer 2 Win Type - Total 0 Types 0/0/0/0/0/0/0/0/0 Lore% 2 Gallery% 12 Achievement% 16 Wizard Run 0 Options --------- Layout 1 ASCII 0 Keyboard 0 Movement Arrows Keybinds 0 Fullscreen 2 Font 24/X11 Map View 50x35 Zoom Use 0% Tactical HUD 1 Map Filters NONE Filters NONE Steam 1 RUN: 64726799-e1ae-4af3-8632-f0dae899379a